fUST/lending_fUST_20250311
["ID","MTS","AMOUNT","RATE_DAILY","PERIOD"]
[355898009,1741695048441,-553.47207043,0.00033424,7]
[355898010,1741695048451,-500.0,0.00033424,7]
[355898011,1741695048461,-530.54986049,0.00033424,7]
[355898012,1741695048470,-500.0,0.00033424,7]
[355898013,1741695048480,-500.0,0.00033424,7]
[355898014,1741695048490,-500.0,0.00033424,7]
[355898015,1741695048500,-500.0,0.00033424,7]
[355898016,1741695048511,-1257.39,0.00033424,7]
[355898017,1741695048521,-500.0,0.00033424,7]
[355898018,1741695048531,-500.0,0.00033424,7]
[355898019,1741695048541,-500.0,0.00033424,7]
[355898020,1741695048552,-3412.74,0.00033424,7]
[355898021,1741695048561,-500.0,0.00033424,7]
[355898022,1741695048571,-764.76,0.00033424,7]
[355898023,1741695048581,-1042.92,0.00033424,7]
[355898024,1741695048591,-516.26,0.00033424,7]
[355898025,1741695048601,-1047.73,0.00033424,7]
[355898026,1741695048611,-500.0,0.00033424,7]
[355898027,1741695048620,-1059.9,0.00033424,7]
[355898028,1741695048630,-622.95,0.00033424,7]
[355898029,1741695048641,-500.0,0.00033424,7]
[355898030,1741695048651,-3013.85,0.00033424,7]
[355898031,1741695048662,-500.0,0.00033424,7]
[355898032,1741695048672,-500.0,0.00033424,7]
[355898033,1741695048683,-500.0,0.00033424,7]
[355898034,1741695048693,-667.39,0.00033424,7]
[355898035,1741695048703,-509.65,0.00033424,7]
[355898036,1741695048712,-670.74,0.00033424,7]
[355898037,1741695048723,-1582.72,0.00033424,7]
[355898038,1741695048733,-5626.47,0.00033424,7]
[355898039,1741695048743,-500.0,0.00033424,7]
[355898040,1741695048753,-500.0,0.00033424,7]
[355898041,1741695048763,-500.0,0.00033424,7]
[355898042,1741695048773,-603.07,0.00033424,7]
[355898043,1741695048783,-564.17,0.00033424,7]
[355898044,1741695048793,-843.1,0.00033424,7]
[355898045,1741695048803,-581.91,0.00033424,7]
[355898046,1741695048813,-500.0,0.00033424,7]
[355898047,1741695048823,-3153.02,0.00033424,7]
[355898048,1741695048833,-500.0,0.00033424,7]
[355898049,1741695048843,-6141.32,0.00033424,7]
[355898050,1741695048854,-500.0,0.00033424,7]
[355898051,1741695048864,-500.0,0.00033424,7]
[355898052,1741695048874,-500.0,0.00033424,7]
[355898053,1741695048884,-500.0,0.00033424,7]
[355898054,1741695048894,-4009.94,0.00033424,7]
[355898055,1741695048904,-563.87672301,0.00033424,7]
[355898056,1741695048914,-3615.33,0.00033424,7]
[355898057,1741695048924,-500.0,0.00033424,7]
[355898058,1741695048933,-769.89,0.00033424,7]
[355898059,1741695048944,-1319.72,0.00033424,7]
[355898060,1741695048954,-500.0,0.00033424,7]
[355898061,1741695048964,-500.0,0.00033424,7]
[355898062,1741695048973,-151.0,0.00033424,14]
[355898063,1741695048984,-1549.54,0.00033424,7]
[355898064,1741695048994,-1201.25,0.00033424,7]
[355898065,1741695049003,-500.0,0.00033424,7]
[355898066,1741695049013,-540.93,0.00033424,7]
[355898067,1741695049024,-1267.56,0.00033424,7]
[355898068,1741695049034,-1271.42,0.00033424,7]
[355898069,1741695049044,-736.19,0.00033424,7]
[355898070,1741695049053,-500.0,0.00033424,7]
[355898071,1741695049063,-7024.08,0.00033424,7]
[355898072,1741695049073,-993.56,0.00033424,7]
[355898073,1741695049082,-732.5,0.00033424,7]
[355898074,1741695049092,-541.7,0.00033424,7]
[355898075,1741695049101,-151.0,0.00033424,14]
[355898076,1741695049111,-980.96,0.00033424,7]
[355898077,1741695049121,-500.0,0.00033424,7]
[355898078,1741695049131,-1275.08,0.00033424,7]
[355898079,1741695049141,-986.09,0.00033424,7]
[355898080,1741695049151,-770.93,0.00033424,7]
[355898081,1741695049160,-988.89,0.00033424,7]
[355898082,1741695049169,-1935.18,0.00033424,7]
[355898083,1741695049179,-500.0,0.00033424,7]
[355898084,1741695049192,-1374.06,0.00033424,7]
[355898085,1741695049203,-500.0,0.00033424,7]
[355898086,1741695049212,-500.0,0.00033424,7]
[355898087,1741695049223,-500.0,0.00033424,7]
[355898088,1741695049234,-745.04,0.00033424,7]
[355898089,1741695049244,-5601.81,0.00033424,7]
[355898090,1741695049254,-1155.41,0.00033424,7]
[355898091,1741695049263,-551.07208224,0.00033424,7]
[355898092,1741695049275,-500.0,0.00033424,7]
[355898093,1741695049286,-829.17,0.00033424,7]
[355898094,1741695049296,-962.34,0.00033424,7]
[355898095,1741695049306,-733.52,0.00033424,7]
[355898096,1741695049316,-639.39,0.00033424,7]
[355898097,1741695049325,-500.0,0.00033424,7]
[355898098,1741695049335,-1089.45,0.00033424,7]
[355898099,1741695049345,-5880.08,0.00033424,7]
[355898100,1741695049355,-3049.91,0.00033424,7]
[355898101,1741695049364,-811.41,0.00033424,7]
[355898102,1741695049374,-784.07,0.00033424,7]
[355898103,1741695049384,-500.0,0.00033424,7]
[355898104,1741695049393,-500.0,0.00033424,7]
[355898105,1741695049403,-500.0,0.00033424,7]
[355898106,1741695049413,-500.0,0.00033424,7]
[355898107,1741695049422,-2787.16,0.00033424,7]
[355898108,1741695049432,-500.0,0.00033424,7]
[355898109,1741695049442,-555.22,0.00033424,7]
[355898110,1741695049452,-500.0,0.00033424,7]
[355898111,1741695049462,-1232.85,0.00033424,7]
[355898112,1741695049471,-164.32853599,0.00033424,7]
[355898113,1741695049481,-12621.59,0.00033424,2]
[355898114,1741695049491,-500.0,0.00033424,7]
[355898115,1741695049501,-750.56,0.00033424,7]
[355898116,1741695049511,-151.0,0.00033424,14]
[355898117,1741695049521,-500.0,0.00033424,7]
[355898118,1741695049533,-151.0,0.00033424,14]
[355898119,1741695049543,-500.0,0.00033424,7]
[355898120,1741695049553,-648.75505281,0.00033424,7]
[355898121,1741695049563,-500.0,0.00033424,7]
[355898122,1741695049572,-151.0,0.00033424,14]
[355898123,1741695049582,-2932.36,0.00033424,7]
[355898124,1741695049592,-500.0,0.00033424,7]
[355898125,1741695049603,-500.0,0.00033424,7]
[355898126,1741695049613,-500.0,0.00033424,7]
[355898127,1741695049624,-500.0,0.00033424,7]
[355898128,1741695049635,-787.55,0.00033424,7]
[355898129,1741695049646,-500.13,0.00033424,2]
[355898130,1741695049657,-1927.93,0.00033424,7]
[355898131,1741695049668,-880.5,0.00033424,7]
[355898132,1741695049678,-954.03,0.00033424,7]
[355898133,1741695049689,-151.0,0.00033424,14]
[355898134,1741695049700,-2054.61,0.00033424,7]
[355898135,1741695049711,-500.0,0.00033424,7]
[355898136,1741695049721,-500.0,0.00033424,2]
[355898137,1741695049732,-929.86,0.00033424,7]
[355898138,1741695049742,-500.0,0.00033424,7]
[355898139,1741695049752,-907.67,0.00033424,7]
[355898140,1741695049762,-500.0,0.00033473,5]
[355898141,1741695049775,-500.0,0.00033473,5]
[355898142,1741695049786,-500.0,0.00033473,5]
[355898143,1741695049796,-500.0,0.00033473,5]
[355898144,1741695049806,-500.0,0.00033473,5]
[355898145,1741695049817,-500.0,0.00033473,5]
[355898146,1741695049827,-226.69719526,0.00033473,5]
[355898147,1741695049837,-500.0,0.00033473,5]
[355898148,1741695049847,-500.0,0.00033473,5]
[355898149,1741695049857,-353.24802597,0.00033473,5]
[355898150,1741695049867,-500.0,0.00033473,5]
[355898151,1741695049877,-500.0,0.00033473,5]
[355898152,1741695049887,-500.0,0.00033473,5]
[355898153,1741695049897,-500.0,0.00033473,5]
[355898154,1741695049907,-433.15651098,0.00033473,5]
[355898155,1741695049916,-500.0,0.00033473,5]
[355898156,1741695049926,-500.0,0.00033473,5]
[355898157,1741695049936,-500.0,0.00033473,5]
[355898158,1741695049946,-336.39942985,0.00033473,5]
[355898159,1741695049956,-500.0,0.00033473,5]
[355898160,1741695049965,-500.0,0.00033473,5]
[355898161,1741695049975,-500.0,0.00033473,5]
[355898162,1741695049985,-508.80021398,0.00033473,5]
[355898163,1741695049996,-500.0,0.00033473,4]
[355898164,1741695050006,-161.61115101,0.00033473,5]
[355898165,1741695050016,-161.79749873,0.00033473,5]
[355898166,1741695050028,-500.0,0.00033473,5]
[355898167,1741695050038,-401.05967793,0.00033473,5]
[355898168,1741695050048,-500.0,0.00033473,5]
[355898169,1741695050058,-500.0,0.00033473,5]
[355898170,1741695050067,-500.0,0.00033473,5]
[355898171,1741695050078,-500.0,0.00033473,5]
[355898172,1741695050087,-500.0,0.00033473,5]
[355898173,1741695050097,-505.73341003,0.00033473,5]
[355898174,1741695050107,-500.0,0.00033473,5]
[355898175,1741695050118,-500.0,0.00033473,5]
[355898176,1741695050127,-502.31626572,0.00033473,5]
[355898177,1741695050138,-500.0,0.00033473,5]
[355898178,1741695050148,-500.0,0.00033473,5]
[355898179,1741695050158,-500.0,0.00033473,5]
[355898180,1741695050168,-500.0,0.00033473,5]
[355898181,1741695050178,-500.0,0.00033473,5]
[355898182,1741695050188,-503.08004484,0.00033473,5]
[355898183,1741695050198,-500.0,0.00033473,5]
[355898184,1741695050210,-500.0,0.00033473,5]
[355898185,1741695050219,-500.0,0.00033473,5]
[355898186,1741695050229,-500.0,0.00033473,5]
[355898187,1741695050240,-500.0,0.00033473,5]
[355898188,1741695050250,-504.1226672,0.00033473,5]
[355898189,1741695050260,-611.98482621,0.00033473,5]
[355898190,1741695050271,-500.0,0.00033473,3]
[355898191,1741695050281,-557.20045023,0.00033473,5]
[355898192,1741695050291,-500.0,0.00033473,5]
[355898193,1741695050301,-500.0,0.00033473,5]
[355898194,1741695050310,-500.0,0.00033473,5]
[355898195,1741695050319,-505.2304907,0.00033473,2]
[355898196,1741695050328,-500.0,0.00033473,5]
[355898197,1741695050339,-500.0,0.00033473,5]
[355898198,1741695050347,-500.0,0.00033473,5]
[355898199,1741695050357,-500.0,0.00033473,5]
[355898200,1741695050366,-500.0,0.00033473,5]
[355898201,1741695050376,-356.22009041,0.00033473,5]
[355898202,1741695050385,-322.64391788,0.00033473,5]
[355898203,1741695050395,-500.0,0.00033473,5]
[355898204,1741695050405,-500.0,0.00033473,5]
[355898205,1741695050414,-500.0,0.00033473,5]
[355898206,1741695050424,-500.0,0.00033473,5]
[355898207,1741695050434,-500.0,0.00033473,5]
[355898208,1741695050444,-500.0,0.00033473,5]
[355898209,1741695050454,-151.54440811,0.00033473,5]
[355898210,1741695050464,-158.68167274,0.00033616,30]
[355898211,1741695050474,-322.0154531,0.0003367,2]
[355898212,1741695050484,-500.0,0.00033673,5]
[355898213,1741695050495,-500.0,0.00033673,5]
[355898214,1741695050505,-500.0,0.00033673,5]
[355898215,1741695050514,-150.0,0.00033673,5]
[355898216,1741695050523,-150.0,0.00033673,5]
[355898217,1741695050533,-150.8317865,0.00033673,5]
[355898218,1741695050542,-780.0,0.00033696,2]
[355898219,1741695050552,-151.0,0.00033697,14]
[355898220,1741695050677,-151.0,0.00033697,14]
[355898221,1741695050705,-151.0,0.00033697,14]
[355898222,1741695050715,-151.0,0.00033697,14]
[355898223,1741695050725,-500.0,0.00033698,7]
[355898224,1741695050735,-500.0,0.00033698,5]
[355898225,1741695050745,-500.0,0.00033698,7]
[355898226,1741695050754,-625.55,0.00033698,7]
[355898227,1741695050764,-500.0,0.00033698,7]
[355898228,1741695050774,-500.0,0.00033698,7]
[355898229,1741695050784,-500.0,0.00033698,7]
[355898230,1741695050793,-673.91,0.00033698,7]
[355898231,1741695050804,-500.0,0.00033698,7]
[355898232,1741695050814,-500.0,0.00033698,7]
[355898233,1741695050823,-500.0,0.00033698,7]
[355898234,1741695050833,-500.0,0.00033698,7]
[355898235,1741695050843,-500.0,0.00033698,7]
[355898236,1741695050852,-527.63693831,0.00033698,7]
[355898237,1741695050862,-500.0,0.00033698,7]
[355898238,1741695050872,-500.0,0.00033698,7]
[355898239,1741695050881,-500.0,0.00033698,7]
[355898240,1741695050892,-500.0,0.00033698,7]
[355898241,1741695050902,-500.0,0.00033698,7]
[355898242,1741695050911,-500.0,0.00033698,7]
[355898243,1741695050920,-500.0,0.00033698,7]
[355898244,1741695050930,-596.07281712,0.00033698,7]
[355898245,1741695050940,-702.78,0.00033698,7]
[355898246,1741695050949,-500.0,0.00033698,7]
[355898247,1741695050958,-500.0,0.00033698,7]
[355898248,1741695050968,-500.0,0.00033698,7]
[355898249,1741695050977,-557.89,0.00033698,7]
[355898250,1741695050987,-521.71,0.00033698,7]
[355898251,1741695050997,-500.0,0.00033698,7]
[355898252,1741695051012,-500.0,0.00033698,7]
[355898253,1741695051023,-580.35150179,0.00033698,7]
[355898254,1741695051033,-908.05,0.00033698,7]
[355898255,1741695051043,-500.0,0.00033698,7]
[355898256,1741695051052,-500.0,0.00033698,7]
[355898257,1741695051062,-865.89,0.00033698,7]
[355898258,1741695051071,-500.0,0.00033698,7]
[355898259,1741695051081,-500.0,0.00033698,7]
[355898260,1741695051090,-551.78061088,0.00033698,7]
[355898261,1741695051100,-500.0,0.00033698,7]
[355898262,1741695051110,-500.0,0.00033698,7]
[355898263,1741695051119,-500.0,0.00033698,7]
[355898264,1741695051129,-754.14,0.00033698,7]
[355898265,1741695051139,-1673.35,0.00033698,7]
[355898266,1741695051149,-500.0,0.00033698,7]
[355898267,1741695051160,-548.45858048,0.00033698,7]
[355898268,1741695051169,-500.0,0.00033698,7]
[355898269,1741695051179,-677.07,0.00033698,7]
[355898270,1741695051192,-500.0,0.00033698,7]
[355898271,1741695051201,-500.0,0.00033698,7]
[355898272,1741695051217,-500.0,0.00033698,7]
[355898273,1741695051226,-500.0,0.00033698,7]
[355898274,1741695051237,-1023.55,0.00033698,7]
[355898275,1741695051247,-500.0,0.00033698,7]
[355898276,1741695051257,-500.0,0.00033698,7]
[355898277,1741695051266,-1082.92,0.00033698,7]
[355898278,1741695051277,-500.0,0.00033698,7]
[355898279,1741695051286,-873.54,0.00033698,7]
[355898280,1741695051295,-500.0,0.00033698,7]
[355898281,1741695051304,-519.6,0.00033698,7]
[355898282,1741695051313,-500.0,0.00033698,7]
[355898283,1741695051322,-500.0,0.00033698,7]
[355898284,1741695051331,-507.4863793,0.00033698,7]
[355898285,1741695051344,-500.0,0.00033698,7]
[355898286,1741695051353,-500.0,0.00033698,2]
[355898287,1741695051363,-336.412385,0.00033698,14]
[355898288,1741695051374,-336.412385,0.00033698,14]
[355898289,1741695051384,-500.0,0.00033698,7]
[355898290,1741695051394,-500.0,0.00033698,2]
[355898291,1741695051405,-336.412385,0.00033698,14]
[355898292,1741695051415,-336.412385,0.00033698,14]
[355898293,1741695051425,-500.0,0.00033698,7]
[355898294,1741695051435,-1095.93,0.00033698,7]
[355898295,1741695051445,-695.17,0.00033698,7]
[355898296,1741695051455,-614.38,0.00033698,7]
[355898297,1741695051465,-500.0,0.00033698,7]
[355898298,1741695051475,-500.0,0.00033698,7]
[355898299,1741695051485,-500.0,0.00033698,7]
[355898300,1741695051494,-500.0,0.00033698,2]
[355898301,1741695051504,-551.27,0.00033698,7]
[355898302,1741695051514,-1330.09,0.00033698,7]
[355898303,1741695051525,-500.0,0.00033698,7]
[355898304,1741695051535,-931.03,0.00033698,7]
[355898305,1741695051545,-556.55492448,0.00033698,7]
[355898306,1741695051555,-500.0,0.00033698,7]
[355898307,1741695051565,-151.0,0.00033698,14]
[355898308,1741695051575,-151.0,0.00033698,14]
[355898309,1741695051584,-500.0,0.00033698,7]
[355898310,1741695051593,-591.82,0.00033698,7]
[355898311,1741695051603,-500.0,0.00033698,7]
[355898312,1741695051612,-597.24437733,0.00033698,7]
[355898313,1741695051622,-500.0,0.00033698,7]
[355898314,1741695051632,-500.0,0.00033698,7]
[355898315,1741695051643,-933.31,0.00033698,7]
[355898316,1741695051653,-795.07,0.00033698,7]
[355898317,1741695051662,-500.0,0.00033698,7]
[355898318,1741695051672,-500.0,0.00033698,7]
[355898319,1741695051682,-617.03,0.00033698,7]
[355898320,1741695051692,-1018.72,0.00033698,7]
[355898321,1741695051701,-500.0,0.00033698,7]
[355898322,1741695051712,-500.0,0.00033698,7]
[355898323,1741695051722,-497.16,0.00033698,2]
[355898324,1741695051733,-908.92,0.00033698,7]
[355898325,1741695051749,-1737.97,0.00033698,7]
[355898326,1741695051759,-500.0,0.00033698,7]
[355898327,1741695051772,-826.41,0.00033698,7]
[355898328,1741695051782,-804.08,0.00033698,7]
[355898329,1741695051791,-1673.2,0.00033698,7]
[355898330,1741695051800,-500.0,0.00033698,7]
[355898331,1741695051810,-272.78688632,0.00033698,7]
[355898332,1741695051820,-779.12,0.00033698,7]
[355898333,1741695051830,-796.75,0.00033698,7]
[355898334,1741695051840,-500.0,0.00033698,7]
[355898335,1741695051849,-1274.5,0.00033698,7]
[355898336,1741695051859,-500.0,0.00033698,7]
[355898337,1741695051869,-500.0,0.00033698,7]
[355898338,1741695051879,-500.0,0.00033698,7]
[355898339,1741695051888,-500.0,0.00033698,7]
[355898340,1741695051898,-851.15,0.00033698,7]
[355898341,1741695051907,-500.0,0.00033698,7]
[355898342,1741695051916,-500.0,0.00033698,7]
[355898343,1741695051926,-500.0,0.00033698,7]
[355898344,1741695051936,-1003.93,0.00033698,7]
[355898345,1741695051946,-765.82,0.00033698,7]
[355898346,1741695051956,-637.49,0.00033698,7]
[355898347,1741695051965,-151.0,0.00033698,14]
[355898348,1741695051975,-151.0,0.00033698,14]
[355898349,1741695051985,-2150.15,0.00033698,7]
[355898350,1741695051994,-500.0,0.00033698,7]
[355898351,1741695052003,-2766.58,0.00033698,7]
[355898352,1741695052013,-500.0,0.00033698,7]
[355898353,1741695052023,-500.0,0.00033698,7]
[355898354,1741695052034,-500.0,0.00033698,7]
[355898355,1741695052043,-194.67541737,0.00033698,7]
[355898356,1741695052052,-750.37,0.00033698,7]
[355898357,1741695052062,-500.0,0.00033698,7]
[355898358,1741695052071,-920.19,0.00033698,7]
[355898359,1741695052081,-500.0,0.00033698,7]
[355898360,1741695052090,-151.0,0.00033698,14]
[355898361,1741695052100,-151.0,0.00033698,14]
[355898362,1741695052110,-724.74,0.00033698,7]
[355898363,1741695052119,-500.0,0.00033698,7]
[355898364,1741695052128,-500.0,0.00033698,7]
[355898365,1741695052138,-500.0,0.00033698,7]
[355898366,1741695052147,-663.78,0.00033698,7]
[355898367,1741695052156,-500.0,0.00033698,7]
[355898368,1741695052166,-500.0,0.00033698,7]
[355898369,1741695052175,-500.0,0.00033698,7]
[355898370,1741695052185,-500.0,0.00033698,7]
[355898371,1741695052194,-500.0,0.00033698,7]
[355898372,1741695052209,-795.7,0.00033698,7]
[355898373,1741695052218,-355.32695329,0.00033698,7]
[355898374,1741695052227,-1184.43,0.00033698,7]
[355898375,1741695052237,-500.0,0.00033698,7]
[355898376,1741695052247,-821.86,0.00033698,7]
[355898377,1741695052257,-500.0,0.00033698,7]
[355898378,1741695052266,-500.0,0.00033698,7]
[355898379,1741695052277,-500.0,0.00033698,7]
[355898380,1741695052287,-565.85,0.00033698,7]
[355898381,1741695052296,-550.70636375,0.00033698,7]
[355898382,1741695052306,-500.0,0.00033698,7]
[355898383,1741695052315,-500.0,0.00033698,7]
[355898384,1741695052325,-840.8,0.00033698,7]
[355898385,1741695052334,-500.0,0.00033698,7]
[355898386,1741695052344,-500.0,0.00033698,7]
[355898387,1741695052354,-3149.47,0.00033698,7]
[355898388,1741695052363,-610.20807806,0.00033698,7]
[355898389,1741695052373,-500.0,0.00033698,7]
[355898390,1741695052382,-1452.45,0.00033698,7]
[355898391,1741695052391,-500.0,0.00033698,7]
[355898392,1741695052400,-500.0,0.00033698,7]
[355898393,1741695052410,-626.6,0.00033698,7]
[355898394,1741695052419,-3187.87,0.00033698,7]
[355898395,1741695052429,-500.0,0.00033698,7]
[355898396,1741695052439,-540.88,0.00033698,7]
[355898397,1741695052448,-500.0,0.00033698,7]
[355898398,1741695052458,-500.0,0.00033698,7]
[355898399,1741695052468,-767.86,0.00033698,7]
[355898400,1741695052477,-500.0,0.00033698,7]
[355898401,1741695052486,-942.67,0.00033698,7]
[355898402,1741695052495,-636.21,0.00033698,7]
[355898403,1741695052505,-500.0,0.00033698,7]
[355898404,1741695052514,-151.0,0.00033698,14]
[355898405,1741695052524,-151.0,0.00033698,14]
[355898406,1741695052533,-500.0,0.00033698,7]
[355898407,1741695052543,-1064.79,0.00033698,7]
[355898408,1741695052552,-677.39,0.00033698,7]
[355898409,1741695052561,-500.0,0.00033698,7]
[355898410,1741695052570,-500.0,0.00033698,7]
[355898411,1741695052579,-1153.94,0.00033698,7]
[355898412,1741695052589,-151.0,0.00033698,14]
[355898413,1741695052599,-500.0,0.00033698,7]
[355898414,1741695052608,-500.0,0.00033698,7]
[355898415,1741695052617,-187.58240988,0.00033698,7]
[355898416,1741695052626,-151.0,0.00033698,14]
[355898417,1741695052635,-18956.44,0.00033698,7]
[355898418,1741695052645,-500.0,0.00033698,7]
[355898419,1741695052655,-500.0,0.00033698,7]
[355898420,1741695052665,-500.0,0.00033698,7]
[355898421,1741695052675,-281.58829983,0.00033698,7]
[355898422,1741695052685,-649.68,0.00033698,7]
[355898423,1741695052695,-706.44,0.00033698,3]
[355898424,1741695052705,-686.45,0.00033698,7]
[355898425,1741695052714,-803.3,0.00033698,7]
[355898426,1741695052724,-500.0,0.00033698,7]
[355898427,1741695052734,-756.98,0.00033698,7]
[355898428,1741695052744,-500.0,0.00033698,7]
[355898429,1741695052753,-882.99,0.00033698,7]
[355898430,1741695052762,-564.47,0.00033698,7]
[355898431,1741695052772,-5057.55,0.00033698,7]
[355898432,1741695052782,-815.09,0.00033698,7]
[355898433,1741695052791,-1673.37,0.00033698,7]
[355898434,1741695052801,-500.0,0.00033698,7]
[355898435,1741695052811,-1408.71,0.00033698,7]
[355898436,1741695052822,-1305.95,0.00033698,7]
[355898437,1741695052831,-664.03,0.00033698,7]
[355898438,1741695052976,-500.0,0.00033698,7]
[355898439,1741695052986,-6781.22,0.00033698,7]
[355898440,1741695052995,-926.55,0.00033698,7]
[355898441,1741695053005,-1332.7,0.00033698,7]
[355898442,1741695053015,-1286.83,0.00033698,7]
[355898443,1741695053025,-500.0,0.00033698,7]
[355898444,1741695053034,-500.0,0.00033698,7]
[355898445,1741695053043,-500.0,0.00033698,7]
[355898446,1741695053053,-736.82,0.00033698,7]
[355898447,1741695053062,-500.0,0.00033698,7]
[355898448,1741695053072,-1393.62,0.00033698,7]
[355898449,1741695053081,-977.22,0.00033698,7]
[355898450,1741695053090,-1381.89,0.00033698,7]
[355898451,1741695053099,-1041.53,0.00033698,7]
[355898452,1741695053108,-169173.3,0.00033698,7]
[355898453,1741695053118,-1239.43,0.00033698,7]
[355898454,1741695053127,-500.0,0.00033698,7]
[355898455,1741695053136,-500.0,0.00033698,7]
[355898456,1741695053146,-500.0,0.00033698,7]
[355898457,1741695053155,-500.0,0.00033698,7]
[355898458,1741695053164,-500.0,0.00033698,7]
[355898459,1741695053173,-1257.39,0.00033698,7]
[355898460,1741695053183,-500.0,0.00033698,7]
[355898461,1741695053196,-500.0,0.00033698,7]
[355898462,1741695053205,-548.64875594,0.00033698,7]
[355898463,1741695053215,-3412.74,0.00033698,7]
[355898464,1741695053224,-500.0,0.00033698,7]
[355898465,1741695053235,-764.76,0.00033698,7]
[355898466,1741695053244,-1042.92,0.00033698,7]
[355898467,1741695053253,-516.26,0.00033698,7]
[355898468,1741695053264,-1047.73,0.00033698,7]
[355898469,1741695053274,-500.0,0.00033698,7]
[355898470,1741695053284,-1059.9,0.00033698,7]
[355898471,1741695053293,-622.95,0.00033698,7]
[355898472,1741695053303,-500.0,0.00033698,7]
[355898473,1741695053312,-3013.85,0.00033698,7]
[355898474,1741695053321,-500.0,0.00033698,7]
[355898475,1741695053330,-500.0,0.00033698,7]
[355898476,1741695053339,-500.0,0.00033698,7]
[355898477,1741695053349,-667.39,0.00033698,7]
[355898478,1741695053358,-509.65,0.00033698,7]
[355898479,1741695053367,-670.74,0.00033698,7]
[355898480,1741695053376,-1582.72,0.00033698,7]
[355898481,1741695053385,-5626.47,0.00033698,7]
[355898482,1741695053395,-500.0,0.00033698,7]
[355898483,1741695053405,-500.0,0.00033698,7]
[355898484,1741695053414,-500.0,0.00033698,7]
[355898485,1741695053423,-603.07,0.00033698,7]
[355898486,1741695053433,-564.17,0.00033698,7]
[355898487,1741695053443,-843.1,0.00033698,7]
[355898488,1741695053452,-581.91,0.00033698,7]
[355898489,1741695053462,-500.0,0.00033698,7]
[355898490,1741695053471,-3153.02,0.00033698,7]
[355898491,1741695053481,-500.0,0.00033698,7]
[355898492,1741695053490,-6141.32,0.00033698,7]
[355898493,1741695053499,-500.0,0.00033698,7]
[355898494,1741695053509,-500.0,0.00033698,7]
[355898495,1741695053518,-500.0,0.00033698,7]
[355898496,1741695053528,-4009.94,0.00033698,7]
[355898497,1741695053537,-500.0,0.00033698,7]
[355898498,1741695053546,-3615.33,0.00033698,7]
[355898499,1741695053556,-567.56328805,0.00033698,7]
[355898500,1741695053565,-769.89,0.00033698,7]
[355898501,1741695053575,-1319.72,0.00033698,7]
[355898502,1741695053584,-500.0,0.00033698,7]
[355898503,1741695053594,-248.84302087,0.00033698,7]
[355898504,1741695053605,-1549.54,0.00033698,7]
[355898505,1741695053614,-288.963156,0.00033698,14]
[355898506,1741695053623,-1201.25,0.00033698,7]
[355898507,1741695053633,-500.0,0.00033698,7]
[355898508,1741695053642,-540.93,0.00033698,7]